lending/lending_fUSD_20240928
["ID","MTS","AMOUNT","RATE_DAILY","PERIOD"]
[339393522,1727559038125,-421.399227,0.000129,2]
[339393523,1727559038136,-597.1581044,0.000129,2]
[339393524,1727559038147,-14018.29505153,0.000129,2]
[339393525,1727559038157,-1427.2185654,0.000129,2]
[339393526,1727559038168,-2896.39516468,0.000129,2]
[339393527,1727559038179,-13132.20437919,0.000129,2]
[339393528,1727559038190,-6525.06999584,0.000129,2]
[339393529,1727559038201,-2000.0,0.000129,2]
[339393530,1727559038212,-345.44,0.000129,2]
[339393531,1727559038223,-1239.22320358,0.000129,2]
[339393532,1727559038233,-902.63081299,0.000129,2]
[339393533,1727559038244,-599.9066196,0.000129,2]
[339393534,1727559038337,-615.002,0.000129,2]
[339393535,1727559038348,-576.87446552,0.000129,2]
[339393536,1727559038361,-250.485,0.000129,2]
[339393537,1727559038397,-468.87,0.000129,2]
[339393545,1727559039995,-366.49821679,0.00012814,2]
[339393546,1727559040005,-1649.45034079,0.000129,2]
[339393547,1727559040016,-388.54800044,0.000129,2]
[339393548,1727559040027,-885.4459932,0.000129,2]
[339393549,1727559040038,-1440.18554912,0.000129,2]
[339393550,1727559040056,-395.92311807,0.000129,2]
[339393551,1727559040067,-30993.07578089,0.000129,2]
[339393552,1727559040079,-1000.1041257,0.000129,2]
[339393553,1727559040090,-359.18974162,0.000129,2]
[339393554,1727559040134,-281187.37933445,0.000129,2]
[339393555,1727559040146,-15114.32,0.000129,2]
[339393556,1727559040155,-90110.72979677,0.000129,2]
[339393557,1727559040167,-1094.57625342,0.000129,2]
[339393558,1727559040178,-643.78472677,0.000129,2]
[339393559,1727559040189,-1714.25660773,0.000129,2]
[339393560,1727559040200,-1007.52312096,0.000129,2]
[339393561,1727559040212,-1700.0,0.000129,2]
[339393562,1727559040224,-840.77658634,0.000129,2]
[339393563,1727559040235,-518.424,0.000129,2]
[339393564,1727559040246,-1979.83035888,0.000129,2]
[339393565,1727559040262,-719.26763437,0.000129,2]
[339393566,1727559040273,-1383.75,0.000129,2]
[339393567,1727559040285,-477.21,0.000129,2]
[339393568,1727559040296,-1631.96991874,0.000129,2]
[339393598,1727559040608,-28081.71440958,0.000129,2]
[339393612,1727559043054,-300.0,0.000129,2]
[339393613,1727559043069,-780.0,0.000129,2]
[339393614,1727559043078,-220.0,0.000129,2]
[339393615,1727559043089,-115507.1306466,0.000129,2]
[339393616,1727559043101,-439.30346878,0.000129,2]
[339393617,1727559043111,-503.78643178,0.000129,2]
[339393618,1727559043122,-564.66077792,0.000129,2]
[339393619,1727559043134,-2498.82070866,0.000129,2]
[339393620,1727559043145,-8264.97603201,0.000129,2]
[339393621,1727559043156,-412548.6292,0.000129,2]
[339393622,1727559043171,-3608.49551145,0.000129,2]
[339393623,1727559043182,-2149.47125223,0.000129,2]
[339393624,1727559043193,-177805.24882099,0.000129,2]
[339393625,1727559043204,-3592.67573094,0.000129,2]
[339393626,1727559043217,-13779.17179148,0.000129,2]
[339393627,1727559043229,-1509.89121034,0.000129,2]
[339393628,1727559043243,-1278.43642964,0.000129,2]
[339393629,1727559043258,-35897.32272645,0.000129,2]
[339393630,1727559043269,-64861.13167189,0.000129,2]
[339393631,1727559043279,-10594.90675,0.000129,2]
[339393632,1727559043293,-12722.77961447,0.000129,2]
[339393633,1727559043304,-73187.12598657,0.000129,2]
[339393635,1727559046029,-366.49821679,0.00012827,2]
[339393636,1727559046039,-325.34718174,0.000129,2]
[339393637,1727559046199,-64985.22474097,0.000129,2]
[339393638,1727559046259,-650.51209517,0.000129,2]
[339393642,1727559131285,500.0,0.00010959,2]
[339393643,1727559131593,500.0,0.00010959,2]
[339393644,1727559132512,500.0,0.00010959,2]
[339393645,1727559132833,500.0,0.00010959,2]
[339393646,1727559133248,500.0,0.00010959,2]
[339393647,1727559133562,500.0,0.00010959,2]
[339393648,1727559133888,500.0,0.00010959,2]
[339393649,1727559134235,500.0,0.00010959,2]
[339393650,1727559134569,500.0,0.00010959,2]
[339393651,1727559134898,500.0,0.00010959,2]
[339393652,1727559135220,500.0,0.00010959,2]
[339393653,1727559135549,500.0,0.00010959,2]
[339393654,1727559135870,500.0,0.00010959,2]
[339393655,1727559136189,500.0,0.00010959,2]
[339393656,1727559136527,500.0,0.00010959,2]
[339393657,1727559137032,500.0,0.00010959,2]
[339393658,1727559137619,500.0,0.00010959,2]
[339393659,1727559137742,500.0,0.00010959,2]
[339393660,1727559138066,500.0,0.00010959,2]
[339393661,1727559138383,500.0,0.00010959,2]
[339393662,1727559138699,500.0,0.00010959,2]
[339393663,1727559139613,500.0,0.00010959,2]
[339393664,1727559139921,500.0,0.00010959,2]
[339393665,1727559140827,500.0,0.00010959,2]
[339393666,1727559141147,500.0,0.00010959,2]
[339393667,1727559141502,500.0,0.00010959,2]
[339393668,1727559141805,500.0,0.00010959,2]
[339393669,1727559142115,500.0,0.00010959,2]
[339393670,1727559142437,500.0,0.00010959,2]
[339393671,1727559142757,500.0,0.00010959,2]
[339393672,1727559143662,500.0,0.00010959,2]
[339393673,1727559143976,500.0,0.00010959,2]
[339393674,1727559144335,500.0,0.00010959,2]
[339393675,1727559144643,500.0,0.00010959,2]
[339393676,1727559144984,500.0,0.00010959,2]
[339393677,1727559145299,500.0,0.00010959,2]
[339393678,1727559145667,500.0,0.00010959,2]
[339393679,1727559145979,500.0,0.00010959,2]
[339393680,1727559146367,500.0,0.00010959,2]
[339393681,1727559146690,500.0,0.00010959,2]
[339393682,1727559147165,500.0,0.00010959,2]
[339393683,1727559147369,500.0,0.00010959,2]
[339393684,1727559147680,500.0,0.00010959,2]
[339393685,1727559148044,500.0,0.00010959,2]
[339393686,1727559148385,500.0,0.00010959,2]
[339393687,1727559148707,500.0,0.00010959,2]
[339393688,1727559149053,500.0,0.00010959,2]
[339393689,1727559149401,500.0,0.00010959,2]
[339393690,1727559149717,500.0,0.00010959,2]
[339393691,1727559150045,500.0,0.00010959,2]
[339393692,1727559150363,500.0,0.00010959,2]
[339393693,1727559150677,500.0,0.00010959,2]
[339393694,1727559150985,500.0,0.00010959,2]
[339393695,1727559151880,500.0,0.00010959,2]
[339393696,1727559152226,500.0,0.00010959,2]
[339393697,1727559152541,500.0,0.00010959,2]
[339393698,1727559153499,500.0,0.00010959,2]
[339393699,1727559153897,500.0,0.00010959,2]
[339393700,1727559154787,500.0,0.00010959,2]
[339393701,1727559155116,500.0,0.00010959,2]
[339393702,1727559155467,500.0,0.00010959,2]
[339393703,1727559156340,500.0,0.00010959,2]
[339393704,1727559156722,500.0,0.00010959,2]
[339393705,1727559157119,500.0,0.00010959,2]
[339393706,1727559157574,500.0,0.00010959,2]
[339393707,1727559157741,500.0,0.00010959,2]
[339393708,1727559158059,500.0,0.00010959,2]
[339393709,1727559158596,500.0,0.00010959,2]
[339393710,1727559158903,500.0,0.00010959,2]
[339393711,1727559159411,500.0,0.00010959,2]
[339393712,1727559159725,500.0,0.00010959,2]
[339393713,1727559160032,500.0,0.00010959,2]
[339393714,1727559160340,500.0,0.00010959,2]
[339393715,1727559160652,500.0,0.00010959,2]
[339393716,1727559160982,500.0,0.00010959,2]
[339393717,1727559161298,500.0,0.00010959,2]
[339393718,1727559161604,500.0,0.00010959,2]
[339393719,1727559162526,500.0,0.00010959,2]
[339393720,1727559162844,672.0,0.00010959,2]
[339393721,1727559171381,500.0,0.00010959,2]
[339393722,1727559172325,500.0,0.00010959,2]
[339393723,1727559172635,500.0,0.00010959,2]
[339393724,1727559172965,500.0,0.00010959,2]
[339393725,1727559173275,500.0,0.00010959,2]
[339393726,1727559173647,500.0,0.00010959,2]
[339393727,1727559173997,500.0,0.00010959,2]
[339393728,1727559174319,500.0,0.00010959,2]
[339393729,1727559174627,672.0,0.00010959,2]
[339393730,1727559196225,200.0,0.00021433,120]
[339393731,1727559278024,150.0,0.00011112,2]
[339393732,1727559324422,500.0,8.22e-05,2]
[339393733,1727559325967,500.0,0.0001096,2]
[339393734,1727559331363,1400.0,8.22e-05,2]
[339393735,1727559333152,1400.0,9.59e-05,2]
[339393736,1727559334706,1400.0,0.0001096,2]
[339393737,1727559340484,2000.0,8.22e-05,2]
[339393738,1727559342061,2000.0,9.59e-05,2]
[339393739,1727559342218,500.0,8.972e-05,2]
[339393740,1727559343697,2000.0,0.0001096,2]
[339393741,1727559343794,500.0,0.00010342,2]
[339393742,1727559493088,170.92,9.519e-05,2]
[339393743,1727559510202,1050.0,0.00011,2]
[339393744,1727559511998,260.35,0.00010959,2]
[339393745,1727559584111,566.67,9.932e-05,2]
[339393777,1727560232192,-942.510451,0.00011454,2]
[339393778,1727560232203,-150.0,0.00011589,2]
[339393779,1727560232213,-165.80340481,0.00011612,2]
[339393780,1727560232223,-500.0,0.00011712,2]
[339393781,1727560232233,-698.39614419,0.00011773,2]
[339393782,1727560232249,-676.04065581,0.00011773,2]
[339393783,1727560232259,-150.8,0.00011788,2]
[339393784,1727560232268,-250.0,0.00011834,2]
[339393785,1727560232278,-123.15934419,0.00011842,2]
[339393792,1727560234802,538.33,9.873e-05,2]
[339393793,1727560238308,-829.10102755,0.00011842,2]
[339393794,1727560238322,-47.73962826,0.00011842,2]
[339393795,1727560238332,-150.0,0.00011948,2]
[339393796,1727560238343,-9999.99,0.00011948,2]
[339393797,1727560238353,-1074.21,0.00011948,2]
[339393798,1727560238363,-177.03,0.00011949,2]
[339393799,1727560238372,-499.99,0.00011949,2]
[339393800,1727560238381,-21946.59,0.00011949,2]
[339393801,1727560238391,-499.99,0.00011949,2]
[339393802,1727560238400,-1489.72,0.00011949,2]
[339393803,1727560238409,-538.33,0.00012137,2]
[339393804,1727560238419,-287.43,0.00012196,2]
[339393805,1727560238427,-1536.96,0.00012196,2]
[339393806,1727560238436,-1400.0,0.0001233,2]
[339393807,1727560238446,-2000.0,0.0001233,2]
[339393808,1727560238455,-158.492037,0.00012454,2]
[339393809,1727560238635,-324.474196,0.00012454,2]
[339393810,1727560238647,-324.474196,0.0001261,2]
[339393811,1727560238656,-1012.44138881,0.00012642,2]
[339393812,1727560238665,-324.474196,0.00012766,2]
[339393813,1727560238674,-8626.69260169,0.0001279,2]
[339393814,1727560238684,-150.0,0.00012795,2]
[339393815,1727560238693,-500.0,0.00012797,2]
[339393816,1727560238702,-1752.9175,0.00012799,2]
[339393817,1727560238712,-180.45951325,0.000128,2]
[339393818,1727560238721,-1000.0,0.000128,2]
[339393819,1727560238730,-156.2770892,0.000128,2]
[339393820,1727560238739,-193.27,0.000128,2]
[339393821,1727560238748,-152.57816571,0.000128,2]
[339393822,1727560238757,-219.89893011,0.000128,2]
[339393823,1727560238767,-5383.8135,0.000128,2]
[339393824,1727560238776,-276.66423941,0.000128,2]
[339393825,1727560238785,-214.65479575,0.000128,2]
[339393826,1727560238794,-1000.0,0.000128,2]
[339393827,1727560238803,-730.90849909,0.000128,2]
[339393828,1727560238812,-321.9831508,0.000128,2]
[339393829,1727560238821,-1887.60196744,0.000128,2]
[339393830,1727560238830,-588.56681748,0.000128,2]
[339393831,1727560238839,-219.89893007,0.00012811,2]
[339393832,1727560238848,-276.66423939,0.00012814,2]
[339393833,1727560238858,-219.89893007,0.00012822,2]
[339393834,1727560238867,-276.66423939,0.00012829,2]
[339393835,1727560238877,-219.89893007,0.00012833,2]
[339393836,1727560238886,-276.66423939,0.00012843,2]
[339393837,1727560238896,-219.89893007,0.00012844,2]
[339393838,1727560238908,-14826.6,0.00012846,2]
[339393839,1727560238918,-730.90849907,0.0001285,2]
[339393840,1727560238928,-1546.23548492,0.0001285,2]
[339393841,1727560238960,-341.36648252,0.0001285,2]
[339393842,1727560238969,-219.89893007,0.00012856,2]
[339393843,1727560238978,-194.14654432,0.00012856,2]
[339393897,1727560246371,-308.485005,0.00011967,2]
[339393915,1727560294921,500.0,8.972e-05,2]
[339393916,1727560318148,900.0,8.972e-05,2]
[339393917,1727560318409,1300.0,8.972e-05,2]
[339393918,1727560318651,500.0,8.972e-05,2]
[339393919,1727560319708,900.0,0.00010342,2]
[339393920,1727560319958,1300.0,0.00010342,2]
[339393921,1727560320202,500.0,0.00010342,2]
[339393925,1727560483177,150.0,0.00022,120]
[339393926,1727560484107,150.0,0.00022,120]
[339393927,1727560484660,150.0,0.00022,120]
[339393928,1727560485132,150.0,0.00022,120]
[339393929,1727560485680,150.0,0.00022,120]
[339393930,1727560486186,150.0,0.00022,120]
[339393931,1727560492010,150.0,0.00022,120]
[339393932,1727560514776,150.0,0.00022,120]
[339393933,1727560515394,150.0,0.00022,120]
[339393934,1727560516097,150.0,0.00022,120]
[339393935,1727560516815,150.0,0.00022,120]
[339393936,1727560660125,500.0,8.972e-05,2]
[339393937,1727560691006,170.34,0.00010959,2]
[339393938,1727560795412,529.02,9.763e-05,2]
[339393939,1727561318273,1050.0,0.00011,2]
[339393940,1727561334840,524.38,9.282e-05,2]
[339393941,1727561371644,192.94,0.00010959,2]
[339393942,1727561381225,150.0,0.00011033,2]
[339393945,1727561431561,-199.02,0.00011273,2]
[339393946,1727561431570,-177.03,0.00011317,2]
[339393947,1727561431580,-300.0,0.00011383,2]
[339393948,1727561431589,-720.45221221,0.00011475,2]
[339393949,1727561431601,-879.36353194,0.00011475,2]
[339393950,1727561431612,-679.3503,0.00011475,2]
[339393951,1727561431623,-8868.9113244,0.00011475,2]
[339393952,1727561431635,-6027.50263145,0.00011475,2]
[339393953,1727561431644,-250.0,0.00011477,2]
[339393954,1727561431653,-165.12754183,0.00011522,2]
[339393955,1727561431663,-524.38,0.00011546,2]
[339393956,1727561431672,-250.0,0.00011566,2]
[339393957,1727561431681,-689.39356009,0.00011594,2]
[339393958,1727561431692,-558.35643991,0.00011594,2]
[339393959,1727561431702,-407.67661009,0.00011622,2]
[339393960,1727561431713,-277.9595,0.00011622,2]
[339393961,1727561431725,-314.36388991,0.00011622,2]
[339393962,1727561431734,-150.0,0.00011639,2]
[339393963,1727561431743,-212.56,0.0001164,2]
[339393964,1727561431752,-9999.99,0.0001164,2]
[339393965,1727561431762,-3869.23,0.0001164,2]
[339393966,1727561431771,-250.0,0.00011656,2]
[339393967,1727561431780,-499.99,0.00011656,2]
[339393968,1727561431789,-900.0,0.00011712,2]
[339393969,1727561431798,-1300.0,0.00011712,2]
[339393970,1727561431807,-500.0,0.00011712,2]
[339393971,1727561431816,-306.04,0.00011801,2]
[339393972,1727561431825,-152.74,0.00011822,2]
[339393973,1727561431836,-139951.35125414,0.00011832,2]
[339393974,1727561431847,-1205.0,0.00011832,2]
[339393975,1727561431858,-3379.73117189,0.00011832,2]
[339393976,1727561431866,-1004.85882811,0.00012255,2]
[339393979,1727561431877,-1981.74487434,0.00012255,2]
[339393980,1727561431888,-104.76904583,0.00012255,2]
[339393981,1727561431897,-686.6607,0.000127,2]
[339393982,1727561431906,-198.11099732,0.00012733,2]
[339393983,1727561431915,-150.75966,0.00012771,2]
[339393984,1727561431924,-9212.77805926,0.00012777,2]
[339393985,1727561431935,-1097.34227907,0.00012777,2]
[339393986,1727561431946,-5074.37907984,0.00012777,2]
[339393987,1727561431955,-150.0,0.00012795,2]
[339393988,1727561431965,-379.12884768,0.000128,2]
[339393989,1727561431976,-949.17225232,0.000128,2]
[339393990,1727561431985,-500.0,0.000128,2]
[339393991,1727561431994,-152.5781657,0.000128,2]
[339393992,1727561432003,-193.6877291,0.000128,2]
[339393993,1727561432012,-243.63616637,0.000128,2]
[339393994,1727561432022,-350.319,0.0001285,2]
[339393995,1727561432031,-243.63616635,0.0001285,2]
[339393996,1727561432040,-260.579366,0.00012876,2]
[339393997,1727561432049,-278.77783802,0.00012876,2]
[339393998,1727561432061,-221.22216198,0.00012876,2]
[339393999,1727561432070,-263.09783802,0.00012876,2]
[339394000,1727561432081,-258.34336379,0.00012876,2]
[339394001,1727561432090,-244.67935421,0.00012876,2]
[339394002,1727561432103,-255.32064579,0.00012876,2]
[339394003,1727561432113,-258.92,0.00012876,2]
[339394004,1727561432123,-302.42576683,0.00012876,2]
[339394005,1727561432134,-67.48346673,0.00012876,2]
[339394006,1727561432143,-1265.14769136,0.00012883,2]
[339394007,1727561432154,-763.75058288,0.00012883,2]
[339394008,1727561432165,-1786.71591369,0.00012883,2]
[339394009,1727561432176,-450.44936041,0.00012883,2]
[339394010,1727561432187,-490.46366303,0.00012883,2]
[339394011,1727561432198,-697.89036063,0.00012883,2]
[339394012,1727561437474,-2042.05432558,0.00011832,2]
[339394013,1727561437486,-5020.75744016,0.00011832,2]
[339394014,1727561437497,-601.94567442,0.00011832,2]
[339394015,1727561437507,-483.7355491,0.00011832,2]
[339394016,1727561437625,-942.02236414,0.00011832,2]
[339394017,1727561437638,-534.4333347,0.00011832,2]
[339394018,1727561437650,-538.27659695,0.00011832,2]
[339394019,1727561437661,-2074.28288858,0.00011832,2]
[339394020,1727561437721,-437.37113765,0.00011832,2]
[339394021,1727561437732,-3398.26145058,0.00011832,2]
[339394022,1727561437750,-333440.93321445,0.00011832,2]
[339394023,1727561437760,-9781.782428,0.00012883,2]
[339394024,1727561437770,-164.53864003,0.00012889,2]
[339394025,1727561437779,-164.53864003,0.0001289,2]
[339394026,1727561437789,-164.53864003,0.0001289,2]
[339394028,1727561437798,-152.74,0.0001289,2]
[339394030,1727561437809,-152.74,0.0001289,2]
[339394032,1727561437819,-152.74,0.0001289,2]
[339394033,1727561437827,-152.74,0.0001289,2]
[339394035,1727561437837,-152.74,0.0001289,2]
[339394036,1727561437847,-152.74,0.0001289,2]
[339394037,1727561437856,-152.74,0.0001289,2]
[339394038,1727561437866,-152.74,0.0001289,2]
[339394039,1727561437875,-152.74,0.0001289,2]
[339394040,1727561437884,-152.74,0.0001289,2]
[339394041,1727561437893,-152.74,0.0001289,2]
[339394042,1727561437903,-152.74,0.0001289,2]
[339394043,1727561437912,-152.74,0.0001289,2]
[339394044,1727561437921,-152.74,0.0001289,2]
[339394045,1727561437932,-152.74,0.0001289,2]
[339394046,1727561437941,-152.74,0.0001289,2]
[339394047,1727561437950,-152.74,0.0001289,2]
[339394048,1727561437960,-152.74,0.0001289,2]
[339394049,1727561437969,-161.0429925,0.00012894,2]
[339394050,1727561437979,-14387.9773671,0.00012897,2]
[339394051,1727561437988,-1000.0,0.00012899,2]
[339394052,1727561437998,-500.0,0.00012899,2]
[339394053,1727561438008,-500.0,0.00012899,2]
[339394054,1727561438017,-500.0,0.00012899,2]
[339394055,1727561438026,-500.0,0.00012899,2]
[339394056,1727561438035,-500.0,0.00012899,2]
[339394057,1727561438045,-500.0,0.00012899,2]
[339394058,1727561438055,-500.0,0.00012899,2]
[339394059,1727561438064,-592.4572427,0.00012899,2]
[339394060,1727561438074,-1000.0,0.00012899,2]
[339394061,1727561438083,-605.9959065,0.00012899,2]
[339394062,1727561438093,-500.0,0.00012899,2]
[339394063,1727561438102,-276.64519111,0.00012899,2]
[339394064,1727561438111,-500.0,0.00012899,2]
[339394065,1727561438121,-500.0,0.00012899,2]
[339394066,1727561438131,-500.0,0.00012899,2]
[339394067,1727561438140,-500.0,0.00012899,2]
[339394068,1727561438150,-500.0,0.00012899,2]
[339394069,1727561438160,-500.0,0.00012899,2]
[339394070,1727561438170,-150.0,0.000129,2]
[339394071,1727561438179,-15280.31,0.000129,2]
[339394072,1727561438189,-44269.63,0.000129,2]
[339394073,1727561438198,-58107.43864353,0.000129,2]
[339394074,1727561439514,-24124.4601,0.000129,2]
[339394075,1727561439525,-313.427364,0.000129,2]
[339394076,1727561439659,-2074.542965,0.000129,2]
[339394077,1727561439672,-1328.24173266,0.000129,2]
[339394118,1727561442550,-1118.97,0.00012642,2]
[339394119,1727561442563,-9.47435521,0.00012642,2]
[339394120,1727561442573,-402.99914708,0.000129,2]
[339394121,1727561442585,-510.33427452,0.000129,2]
[339394122,1727561442599,-1377.53454,0.000129,2]
[339394123,1727561442609,-2551.14997692,0.000129,2]
[339394124,1727561442620,-344.59647188,0.000129,2]
[339394125,1727561442631,-20935.32554142,0.000129,2]
[339394126,1727561442643,-2248.95674392,0.000129,2]
[339394127,1727561442656,-8823.99346952,0.000129,2]
[339394128,1727561442668,-12988.4578671,0.000129,2]
[339394129,1727561442678,-614.29174979,0.000129,2]
[339394130,1727561442689,-3972.09929284,0.000129,2]
[339394131,1727561442699,-10035.08183559,0.000129,2]
[339394132,1727561445370,-374.80851751,0.000129,2]
[339394133,1727561445382,-3564.74835214,0.000129,2]
[339394134,1727561445394,-260.0,0.000129,2]
[339394135,1727561445406,-611.804,0.000129,2]
[339394136,1727561445417,-1240.6564181,0.000129,2]
[339394137,1727561445466,-1321.4022825,0.000129,2]
[339394138,1727561445477,-13300.00000008,0.000129,2]
[339394139,1727561445542,-530.6,0.000129,2]
[339394140,1727561445555,-1869.3662922,0.000129,2]
[339394141,1727561445566,-1390.08845816,0.000129,2]
[339394142,1727561445577,-617.9005939,0.000129,2]
[339394143,1727561445697,-403.53386833,0.000129,2]
[339394144,1727561445708,-6372.4344052,0.000129,2]
[339394146,1727561487999,500.0,8.972e-05,2]
[339394147,1727561494719,500.0,8.972e-05,2]
[339394148,1727561495259,1100.0,8.972e-05,2]
[339394149,1727561496840,1100.0,0.00010342,2]
[339394150,1727561497083,700.0,0.00010068,2]
[339394151,1727561644363,170.92,9.479e-05,2]
[339394152,1727561655932,500.0,8.972e-05,2]
[339394161,1727561881513,653.4,9.752e-05,2]
[339394162,1727561886432,162.68,0.00010959,2]
[339394163,1727561895841,1000.0,0.00011112,2]
[339394164,1727562259265,151.0,0.00011112,2]
[339394165,1727562259585,298.0,0.00011112,2]
[339394166,1727562271639,150.0,0.00011056,2]
[339394167,1727562319465,7607.62091834,9e-05,2]
[339394168,1727562328946,13699.65354098,0.000101,2]
[339394169,1727562354115,4223.54358633,6.94e-05,2]
[339394170,1727562389020,246.61903405,0.000111,2]
[339394171,1727562484611,260.03,0.00010959,2]
[339394176,1727562510706,7060.04798734,0.00010998,2]
[339394177,1727562515419,388.55,0.00010959,2]
[339394178,1727562520281,254.188966,0.000107,2]
[339394182,1727562536536,883.09,0.00010959,2]
[339394195,1727562631731,-487.52582934,0.00011159,2]
[339394196,1727562631742,-952.80657972,0.00011338,2]
[339394197,1727562631752,-700.0,0.00011438,2]
[339394198,1727562631760,-1000.0,0.00011442,2]
[339394199,1727562631770,-244.83,0.00011449,2]
[339394200,1727562631779,-250.0,0.00011487,2]
[339394201,1727562631788,-250.0,0.00011492,2]
[339394202,1727562631797,-1500.0,0.000115,2]
[339394203,1727562631806,-12641.93,0.00011519,2]
[339394204,1727562631815,-347.54,0.00011576,2]
[339394205,1727562631825,-411.4,0.00011576,2]
[339394206,1727562631836,-168.81,0.00011579,2]
[339394207,1727562631848,-150.99,0.00011579,2]
[339394208,1727562631857,-250.0,0.00011601,2]
[339394209,1727562631866,-5193.48,0.00011601,2]
[339394210,1727562631875,-226.69,0.00011689,2]
[339394211,1727562631884,-1688.54,0.00011689,2]
[339394212,1727562631894,-500.0,0.00011712,2]
[339394213,1727562631904,-1100.0,0.00011712,2]
[339394214,1727562631915,-500.0,0.00011712,2]
[339394215,1727562631925,-353.82,0.00011712,2]
[339394216,1727562631935,-216.30053767,0.00011722,2]
[339394217,1727562631946,-150.0,0.00011731,2]
[339394218,1727562631955,-51255.9242,0.00011732,2]
[339394219,1727562631964,-430.0258,0.00011732,2]
[339394220,1727562631974,-2077.7187,0.00011732,2]
[339394221,1727562631983,-653.4,0.00012016,2]
[339394222,1727562631992,-799.0,0.00012057,2]
[339394223,1727562632000,-618.66,0.00012101,2]
[339394224,1727562632010,-155.752941,0.00012454,2]
[339394225,1727562632019,-1062.35507526,0.00012642,2]
[339394226,1727562632028,-4009.81255192,0.000127,2]
[339394227,1727562632038,-4009.81255185,0.00012722,2]
[339394228,1727562632047,-4009.81255185,0.00012744,2]
[339394229,1727562632058,-155.752941,0.00012766,2]
[339394230,1727562632066,-4009.81255185,0.00012767,2]
[339394231,1727562632075,-30120.21003462,0.0001277,2]
[339394232,1727562632084,-9855.77220001,0.0001278,2]
[339394233,1727562632094,-4009.81255185,0.00012789,2]
[339394234,1727562632103,-150.0,0.00012795,2]
[339394235,1727562632112,-426.98,0.00012795,14]
[339394236,1727562632122,-1113.1381,0.000128,2]
[339394237,1727562632131,-8073.3963,0.000128,2]
[339394238,1727562632140,-469.3346,0.000128,2]
[339394239,1727562632149,-20675.2595,0.000128,2]
[339394240,1727562632159,-1324.674,0.000128,2]
[339394241,1727562632169,-629.20065582,0.000128,2]
[339394242,1727562632177,-700.0,0.00012808,2]
[339394243,1727562632187,-4009.81255185,0.00012811,2]
[339394244,1727562632196,-3882.93651313,0.00012833,2]
[339394245,1727562632208,-126.87603872,0.00012833,2]
[339394246,1727562632217,-629.20065581,0.0001285,2]
[339394247,1727562632226,-4009.81255185,0.00012856,2]
[339394248,1727562632235,-315.325,0.00012856,2]
[339394249,1727562632244,-1000.0,0.00012873,2]
[339394250,1727562632253,-4009.81255185,0.00012878,2]
[339394251,1727562632262,-244.83,0.0001288,2]
[339394252,1727562632271,-152.76,0.0001289,2]
[339394253,1727562632280,-152.76,0.0001289,2]
[339394254,1727562632289,-152.76,0.0001289,2]
[339394255,1727562632298,-670.7128575,0.00012894,2]
[339394256,1727562632307,-1289.7699612,0.00012894,2]
[339394257,1727562632317,-184.6685536,0.00012894,2]
[339394258,1727562632326,-1000.0,0.00012899,2]
[339394259,1727562632335,-500.0,0.00012899,2]
[339394260,1727562632344,-227.3,0.00012899,2]